bitfinex/quotes_SOLUSD_20241127
["timestamp","ask_amount","ask_price","bid_price","bid_amount"]
[1732723862498,2.0863,239.65,239.6,0.4990902]
[1732723862806,23.776884,239.63,239.6,0.4990902]
[1732723862992,1.04090414,239.62,239.6,0.4990902]
[1732723863191,23.776884,239.61,239.6,0.4990902]
[1732723863610,1.0408827,239.65,239.6,0.4990902]
[1732723864308,23.776884,239.64,239.6,0.4990902]
[1732723864492,22.0867,239.61,239.6,0.4990902]
[1732723864700,46.90470714,239.61,239.6,0.4990902]
[1732723865487,21.04112314,239.61,239.6,0.4990902]
[1732723865810,20.0,239.61,239.6,0.4990902]
[1732723865990,43.776884,239.61,239.6,0.4990902]
[1732723866304,44.81802104,239.61,239.6,0.4990902]
[1732723867185,49.81802104,239.61,239.6,0.4990902]
[1732723867385,49.81802104,239.61,239.6,9.02e-05]
[1732723867713,23.776884,239.51,239.5,5.0]
[1732723868011,1.04148161,239.59,239.5,5.0]
[1732723868188,1.04148161,239.59,239.5,9.1752]
[1732723868701,3.12838161,239.59,239.5,9.1752]
[1732723869394,3.12838161,239.59,239.5,5.0]
[1732723869901,1.04148161,239.59,239.51,10.5182]
[1732723870087,1.04118603,239.58,239.51,6.3431]
[1732723870497,1.04118603,239.58,239.5,5.0]
[1732723870705,3.12818603,239.58,239.5,5.0]
[1732723871098,20.0,239.54,239.5,5.0]
[1732723871406,1.04132027,239.53,239.5,5.0]
[1732723872113,1.04125305,239.57,239.5,5.0]
[1732723872415,20.0,239.58,239.5,9.1753]
[1732723872705,1.04109786,239.6,239.5,9.1753]
[1732723872706,2.0862,239.66,239.5,9.1753]
[1732723872919,1.04096443,239.65,239.5,9.1753]
[1732723873603,1.04096443,239.65,239.5,9.1752]
[1732723873803,20.0,239.63,239.5,9.1752]
[1732723874007,1.04110085,239.62,239.51,22.0969]
[1732723874319,2.0862,239.66,239.51,22.0969]
[1732723874609,1.04088935,239.65,239.51,22.0969]
[1732723874790,2.0864,239.64,239.52,4.175]
[1732723874992,1.04093078,239.63,239.51,22.0969]
[1732723875194,1.04093078,239.63,239.51,26.272]
[1732723875195,23.776884,239.62,239.51,26.272]
[1732723875403,20.0,239.59,239.51,26.272]
[1732723875585,1.04110928,239.58,239.51,26.272]
[1732723876302,20.0,239.59,239.51,26.272]
[1732723876512,1.04110104,239.58,239.51,26.272]
[1732723878288,1.04105116,239.61,239.51,26.272]
[1732723878511,2.0863,239.65,239.51,26.272]
[1732723878812,1.04082748,239.64,239.51,26.272]
[1732723879109,2.0865,239.63,239.51,26.272]
[1732723879318,1.04108071,239.62,239.51,26.272]
[1732723879523,1.04108071,239.62,239.51,22.0969]
[1732723879829,20.0,239.57,239.5,5.0]
[1732723880112,20.0,239.52,239.5,5.0]
[1732723880317,1.04150146,239.51,239.5,5.0]
[1732723881004,26.90588546,239.51,239.5,5.0]
[1732723881196,41.94738546,239.51,239.5,1.6468]
[1732723881396,46.94738546,239.51,239.5,0.0001]
[1732723882901,52.56333577,239.51,239.5,0.0001]
[1732723883111,52.56333577,239.51,239.31,6.1404]
[1732723883112,20.0,239.37,239.31,6.1404]
[1732723883428,49.81909437,239.37,239.31,6.1404]
[1732723883921,54.81909437,239.37,239.36,9.02e-05]
[1732723884127,55.18948912,239.37,239.36,9.02e-05]
[1732723884321,54.81909437,239.37,239.36,9.02e-05]
[1732723884524,49.81909437,239.37,239.36,9.02e-05]
[1732723885032,46.90789437,239.37,239.36,9.02e-05]
[1732723885612,25.0,239.32,239.31,2.6839902]
[1732723885827,49.81943191,239.32,239.31,2.6839902]
[1732723886028,44.81943191,239.32,239.31,2.6839902]
[1732723887140,46.90863191,239.32,239.31,2.6839902]
[1732723888020,20.0,239.28,239.18,4.1808]
[1732723888226,1.0424828,239.27,239.18,4.1808]
[1732723888935,1.0424828,239.27,239.13,4.1818]
[1732723889433,3.1321828,239.27,239.13,4.1818]
[1732723889822,1.0424828,239.27,239.13,4.1818]
[1732723890139,1.04254523,239.26,239.13,4.1818]
[1732723890310,1.04249413,239.28,239.13,14.6363]
[1732723890716,5.0,239.37,239.17,43.776884]
[1732723890717,1.04236481,239.36,239.17,43.776884]
[1732723890937,1.04236481,239.36,239.18,14.6332]
[1732723891231,1.04236481,239.36,239.18,4.1809]
[1732723891411,1.04236481,239.36,239.18,24.1809]
[1732723891610,7.3098,239.4,239.19,23.776884]
[1732723891611,1.04217197,239.39,239.19,23.776884]
[1732723892010,1.04217197,239.39,239.19,28.776884]
[1732723892434,1.04217197,239.39,239.19,23.776884]
[1732723892812,1.04217197,239.39,239.23,23.776884]
[1732723893011,1.04183287,239.43,239.26,28.776884]
[1732723893236,71.84900273,239.56,239.25,14.629]
[1732723893237,2.088,239.46,239.25,14.629]
[1732723893536,1.04195633,239.45,239.25,14.629]
[1732723894332,2.0882,239.44,239.25,14.629]
[1732723894533,21.04192738,239.43,239.25,14.629]
[1732723895243,1.04192738,239.43,239.26,23.776884]
[1732723895617,1.04182221,239.42,239.26,23.776884]
[1732723896412,2.0879,239.47,239.27,10.4484]
[1732723896611,20.0,239.43,239.27,10.4484]
[1732723896938,1.04183463,239.42,239.25,24.1797]
[1732723897546,1.04183463,239.42,239.25,4.1797]
[1732723898345,2.0884,239.41,239.25,10.4493]
[1732723899429,1.04184386,239.42,239.25,10.4493]
[1732723900025,3.13024386,239.42,239.25,10.4493]
[1732723901542,1.04184386,239.42,239.29,5.0]
[1732723901730,1.04158169,239.48,239.33,20.0]
[1732723902218,1.04158169,239.48,239.34,23.776884]
[1732723903015,1.04158169,239.48,239.35,14.6228]
[1732723903223,3.12938169,239.48,239.35,4.1779]
[1732723904036,20.0,239.45,239.32,4.1783]
[1732723904256,20.0,239.45,239.24,57.3497]
[1732723904257,1.04182637,239.44,239.25,4.1797]
[1732723905025,2.0882,239.43,239.26,10.4486]
[1732723905323,21.04193814,239.42,239.26,10.4486]
[1732723906251,2.0884,239.41,239.26,10.4486]
[1732723906454,1.04190941,239.4,239.26,10.4486]
[1732723906755,3.12995745,239.45,239.3,20.0]
[1732723907435,3.12995745,239.45,239.26,10.4486]
[1732723909327,1.04185745,239.45,239.3,43.776884]
[1732723909521,1.04158312,239.48,239.3,43.776884]
[1732723909751,3.12938312,239.48,239.3,43.776884]
[1732723910254,1.04158312,239.48,239.35,20.0]
[1732723910556,16.1902,239.55,239.47,20.08467924]
[1732723910734,16.1902,239.55,239.4,20.08467924]
[1732723910735,1.04118338,239.54,239.49,20.08467924]
[1732723911148,1.04118338,239.54,239.51,20.08467924]
[1732723911349,17.23136133,239.55,239.51,20.08467924]
[1732723911755,1.04116191,239.56,239.53,20.08467924]
[1732723911929,1.04099226,239.6,239.55,20.08467924]
[1732723912257,1.04092416,239.61,239.55,20.08467924]
[1732723912829,1.04092416,239.61,239.49,4.1755]
[1732723912830,1.04092416,239.61,239.57,20.08467924]
[1732723914337,1.04092416,239.61,239.53,20.08467924]
[1732723914338,21.1256034,239.61,239.53,20.08467924]
[1732723914541,20.08467924,239.59,239.51,20.08467924]
[1732723914740,20.08467924,239.57,239.49,20.08467924]
[1732723914932,1.0411846,239.56,239.49,20.08467924]
[1732723915236,1.0411846,239.56,239.51,20.08467924]
[1732723915437,2.0867,239.61,239.4,30.52717924]
[1732723915438,20.08467924,239.55,239.47,20.08467924]
[1732723915742,20.08467924,239.51,239.44,20.08467924]
[1732723915928,1.04140967,239.5,239.44,20.08467924]
[1732723916257,1.04140967,239.5,239.36,26.6403]
[1732723916258,22.17237924,239.49,239.4,20.08467924]
[1732723916445,1.04158102,239.48,239.4,20.08467924]
[1732723916644,20.08467924,239.47,239.4,20.08467924]
[1732723916837,1.04163583,239.46,239.4,20.08467924]
[1732723917361,2.0879,239.47,239.4,20.08467924]
[1732723917659,1.04155191,239.47,239.44,20.08467924]
[1732723917966,21.12623115,239.51,239.44,20.08467924]
[1732723918762,21.12623115,239.51,239.42,20.08467924]
[1732723918763,23.21383115,239.51,239.42,20.08467924]
[1732723918956,40.08467924,239.49,239.42,20.08467924]
[1732723919264,1.04152947,239.48,239.42,20.08467924]
[1732723920054,1.04147488,239.5,239.42,20.08467924]
[1732723920444,20.08467924,239.49,239.42,20.08467924]
[1732723920658,1.04149203,239.48,239.4,20.08467924]
[1732723920965,3.12929203,239.48,239.42,20.08467924]
[1732723921147,3.12929203,239.48,239.4,20.08467924]
[1732723922949,20.08467924,239.45,239.38,20.08467924]
[1732723923150,1.04171961,239.44,239.38,20.08467924]
[1732723923357,1.04165212,239.46,239.42,20.08467924]
[1732723923669,1.04165212,239.46,239.4,20.08467924]
[1732723923968,1.04165212,239.46,239.42,20.08467924]
[1732723924293,1.04165212,239.46,239.4,20.08467924]
[1732723924671,1.04165212,239.46,239.42,20.08467924]
[1732723925059,1.04165212,239.46,239.44,20.08467924]
[1732723925251,3.12933451,239.48,239.44,20.08467924]
[1732723925453,3.12933451,239.48,239.42,20.08467924]
[1732723926074,1.04155941,239.49,239.46,20.08467924]
[1732723926252,1.04138901,239.51,239.46,20.08467924]
[1732723926866,3.12888901,239.51,239.46,20.08467924]
[1732723927370,23.21356825,239.51,239.43,20.08467924]
[1732723927680,23.21356825,239.51,239.28,25.08467924]
[1732723927681,20.08467924,239.47,239.39,20.08467924]
[1732723927857,20.08467924,239.45,239.37,20.08467924]
[1732723928054,2.0884,239.41,239.37,20.08467924]
[1732723928251,1.04179248,239.4,239.37,20.08467924]
[1732723928473,1.04179248,239.4,239.29,6.4881]
[1732723928474,1.04179248,239.4,239.35,20.08467924]
[1732723929373,20.08467924,239.43,239.37,20.08467924]
[1732723929374,1.04185165,239.42,239.37,20.08467924]
[1732723929571,23.13025165,239.42,239.35,20.08467924]
[1732723929878,3.13025165,239.42,239.35,20.08467924]
[1732723930467,3.13025165,239.42,239.37,20.08467924]
[1732723930651,1.04185165,239.42,239.39,20.08467924]
[1732723930849,1.04163981,239.46,239.41,20.08467924]
[1732723931050,1.04163981,239.46,239.3,5.0]
[1732723931051,1.04163981,239.46,239.44,20.08467924]
[1732723931456,1.04163981,239.46,239.42,20.08467924]
[1732723931664,1.04163981,239.46,239.39,20.08467924]
[1732723931665,3.12963981,239.46,239.39,20.08467924]
[1732723931859,3.12963981,239.46,239.41,20.08467924]
[1732723932067,35.37647924,239.49,239.41,20.08467924]
[1732723932068,1.04163733,239.45,239.41,20.08467924]
[1732723932873,1.04157674,239.48,239.43,20.08467924]
[1732723933074,1.04150067,239.52,239.46,20.08467924]
[1732723933579,1.04150067,239.52,239.44,20.08467924]
[1732723934075,1.04150067,239.52,239.46,20.08467924]
[1732723934279,3.12900067,239.52,239.46,20.08467924]
[1732723935061,1.04150067,239.52,239.5,20.08467924]
[1732723935369,6.4,239.6,239.5,20.08467924]
[1732723935567,21.12571561,239.59,239.51,20.08467924]
[1732723935866,20.08467924,239.55,239.47,20.08467924]
[1732723936059,1.04131842,239.54,239.47,20.08467924]
[1732723936260,2.0874,239.53,239.47,20.08467924]
[1732723936464,1.04138618,239.52,239.47,20.08467924]
[1732723936855,1.04138618,239.52,239.51,20.08467924]
[1732723937070,13.0078809,239.67,239.52,23.776884]
[1732723937283,1.04056941,239.65,239.62,20.08467924]
[1732723937782,7.54464561,239.66,239.64,20.08467924]
[1732723937986,6.50394045,239.66,239.64,20.08467924]
[1732723939484,6.50394045,239.66,239.64,40.16935848]
[1732723939656,6.50394045,239.66,239.64,44.34215848]
[1732723941875,1.0403107,239.72,239.64,44.34215848]
[1732723942064,1.04035949,239.74,239.71,20.08467924]
[1732723942463,3.12570723,239.76,239.71,20.08467924]
[1732723944379,3.12570723,239.76,239.67,20.08467924]
[1732723944380,43.86156324,239.75,239.67,20.08467924]
[1732723944582,1.04049698,239.74,239.67,20.08467924]
[1732723944787,23.776884,239.73,239.67,20.08467924]
[1732723945088,1.04046902,239.72,239.65,20.08467924]
[1732723945383,23.776884,239.71,239.65,20.08467924]
[1732723945560,1.04059555,239.7,239.65,20.08467924]
[1732723946575,2.086,239.69,239.65,20.08467924]
[1732723946882,1.04057527,239.68,239.65,20.08467924]
[1732723947281,23.776884,239.67,239.63,20.08467924]
[1732723947484,1.0407609,239.66,239.63,20.08467924]
[1732723947678,1.04072075,239.68,239.63,20.08467924]
[1732723948196,43.86156324,239.65,239.57,20.08467924]
[1732723948397,2.0866,239.62,239.59,20.08467924]
[1732723948561,2.0866,239.62,239.61,20.08467924]
[1732723948983,21.04093,239.63,239.61,20.08467924]
[1732723949270,23.12743,239.63,239.61,20.08467924]
[1732723949670,1.04081927,239.62,239.61,20.08467924]
[1732723949977,22.0865,239.63,239.61,20.08467924]
[1732723951190,3.12721889,239.65,239.61,20.08467924]
[1732723951887,23.776884,239.64,239.59,20.08467924]
[1732723952089,3.12751584,239.63,239.61,20.08467924]
[1732723953197,2.0866,239.63,239.61,20.08467924]
[1732723953688,2.0866,239.63,239.59,20.08467924]
[1732723953990,1.04083819,239.62,239.59,20.08467924]
[1732723954193,1.04083819,239.62,239.61,20.08467924]
[1732723954489,2.0866,239.63,239.59,20.08467924]
[1732723954682,1.04083293,239.62,239.59,20.08467924]
[1732723954902,1.04083274,239.65,239.61,20.08467924]
[1732723955070,3.12723274,239.65,239.61,20.08467924]
[1732723955392,3.12723274,239.65,239.59,20.08467924]
[1732723955991,20.0,239.63,239.59,20.08467924]
[1732723956289,20.0,239.63,239.47,38.2693]
[1732723956290,1.04086629,239.62,239.55,20.08467924]
[1732723956665,21.04086629,239.62,239.55,20.08467924]
[1732723956865,21.04086629,239.62,239.57,20.08467924]
[1732723957090,21.04086629,239.62,239.59,20.08467924]
[1732723957274,21.04086629,239.62,239.57,20.08467924]
[1732723957477,21.04086629,239.62,239.47,22.8299]
[1732723957478,2.0867,239.61,239.59,20.08467924]
[1732723957988,2.0867,239.61,239.57,20.08467924]
[1732723958292,1.04091858,239.6,239.55,20.08467924]
[1732723958694,21.04091858,239.6,239.55,20.08467924]
[1732723958988,21.04091858,239.6,239.57,20.08467924]
[1732723959192,1.04091858,239.6,239.57,20.08467924]
[1732723959373,2.0868,239.59,239.55,20.08467924]
[1732723959576,21.04104642,239.58,239.55,20.08467924]
[1732723960382,21.04104642,239.58,239.53,20.08467924]
[1732723960673,2.087,239.57,239.53,20.08467924]
[1732723960874,1.04108547,239.56,239.53,20.08467924]
[1732723962294,1.04108547,239.56,239.55,20.08467924]
[1732723962495,2.0871,239.56,239.55,12.54725661]
[1732723962669,1.04107012,239.57,239.55,12.54725661]
[1732723962878,2.087,239.58,239.55,12.54725661]
[1732723963096,2.087,239.58,239.57,12.54725661]
[1732723963873,1.04107775,239.6,239.55,12.54725661]
[1732723964197,22.0868,239.59,239.53,12.54725661]
[1732723964397,1.04108676,239.58,239.53,12.54725661]
[1732723965103,2.087,239.57,239.53,12.54725661]
[1732723965394,1.04107699,239.56,239.55,12.54725661]
[1732723965701,3.12807299,239.57,239.55,12.54725661]
[1732723966775,1.04107299,239.57,239.55,12.54725661]
[1732723966977,22.0869,239.59,239.55,12.54725661]
[1732723966978,1.04107375,239.58,239.55,12.54725661]
[1732723967286,1.04107375,239.58,239.57,12.54725661]
[1732723967484,3.12797375,239.58,239.57,12.54725661]
[1732723967699,1.04107375,239.58,239.57,12.54725661]
[1732723968004,1.04102125,239.65,239.57,12.54725661]
[1732723968221,6.0211,239.69,239.53,15.1322]
[1732723968222,1.04065529,239.68,239.64,12.54725661]
[1732723968505,2.086,239.69,239.67,12.54725661]
[1732723968506,3.12663115,239.69,239.67,12.54725661]
[1732723969006,1.04054063,239.7,239.68,12.54725661]
[1732723969381,2.0856,239.73,239.68,12.54725661]
[1732723969584,2.0856,239.73,239.72,12.54725661]
[1732723969585,1.04049896,239.73,239.72,12.54725661]
[1732723969800,3.12586068,239.75,239.72,12.54725661]
[1732723970099,2.0854,239.77,239.74,12.54725661]
[1732723970509,2.0854,239.77,239.75,20.04316999]
[1732723971003,1.04019482,239.76,239.73,20.04316999]
[1732723971215,2.0855,239.75,239.73,20.04316999]
[1732723971586,3.12560399,239.76,239.73,20.04316999]
[1732723971987,2.0852,239.78,239.75,20.04316999]
[1732723972185,1.04014189,239.77,239.73,20.04316999]
[1732723972392,1.04014189,239.77,239.71,20.04316999]
[1732723973187,20.0,239.75,239.71,20.04316999]
[1732723973390,1.04033734,239.74,239.71,20.04316999]
[1732723973803,2.0854,239.76,239.73,20.04316999]
[1732723973998,15.423,239.86,239.66,4.1724]
[1732723973999,1.04018087,239.8,239.75,20.04316999]
[1732723974328,3.12528087,239.8,239.78,20.04316999]
[1732723974485,1.03996579,239.84,239.78,20.04316999]
[1732723975298,2.0848,239.83,239.78,20.04316999]
[1732723975499,1.04002172,239.82,239.78,20.04316999]
[1732723976393,21.04002172,239.82,239.78,20.04316999]
[1732723976709,20.0,239.8,239.76,20.04316999]
[1732723976912,21.0833243,239.79,239.7,20.04316999]
[1732723977309,2.0852,239.78,239.7,20.04316999]
[1732723977511,1.04030488,239.77,239.7,20.04316999]
[1732723978688,1.04030488,239.77,239.72,20.04316999]
[1732723978892,1.04030488,239.77,239.65,15.3841]
[1732723978893,1.04030488,239.77,239.74,20.04316999]
[1732723979191,1.04022198,239.79,239.76,20.04316999]
[1732723979399,2.0851,239.79,239.76,20.04316999]
[1732723980109,2.0848,239.83,239.78,20.04316999]
[1732723980416,1.04006062,239.82,239.78,20.04316999]
[1732723981115,2.0849,239.81,239.78,20.04316999]
[1732723981523,1.04002723,239.86,239.8,20.04316999]
[1732723981524,2.0847,239.84,239.8,20.04316999]
[1732723981694,1.04002723,239.86,239.83,20.04316999]
[1732723981897,3.12430104,239.87,239.85,20.04316999]
[1732723982116,1.03974332,239.89,239.85,20.04316999]
[1732723982323,2.0839,239.93,239.87,20.04316999]
[1732723982528,1.03964974,239.92,239.87,20.04316999]
[1732723983220,1.03964974,239.92,239.89,20.04316999]
[1732723983516,2.084,239.92,239.87,20.04316999]
[1732723983717,1.03960761,239.91,239.87,20.04316999]
[1732723984128,1.03960761,239.91,239.89,20.04316999]
[1732723984699,2.084,239.92,239.89,20.04316999]
[1732723985018,1.03955289,239.91,239.89,20.04316999]
[1732723985320,3.12365289,239.91,239.89,20.04316999]
[1732723985521,1.03955423,239.94,239.89,20.04316999]
[1732723985721,2.084,239.92,239.89,20.04316999]
[1732723986020,22.11,239.9,239.89,20.04316999]
[1732723986404,3.12355508,239.92,239.89,20.04316999]
[1732723986925,22.1449902,239.96,239.77,20.7871]
[1732723986926,3.62224349,239.96,239.91,20.04316999]
[1732723987100,0.4990902,239.96,239.95,20.04316999]
[1732723987615,2.5826902,239.96,239.93,20.04316999]
[1732723989335,2.5826902,239.96,239.91,20.04316999]
[1732723989724,1.03934566,239.95,239.89,20.04316999]
[1732723989902,20.0,239.94,239.89,20.04316999]
[1732723990098,21.03954254,239.93,239.87,20.04316999]
[1732723990431,1.03954254,239.93,239.85,20.04316999]
[1732723990619,2.084,239.92,239.85,20.04316999]
[1732723990823,1.03969427,239.91,239.85,20.04316999]
[1732723991210,1.03969427,239.91,239.87,20.04316999]
[1732723991516,1.03969427,239.91,239.85,20.04316999]
[1732723992229,1.03969427,239.91,239.87,20.04316999]
[1732723992602,2.084,239.92,239.89,20.04316999]
[1732723994225,2.084,239.92,239.87,20.04316999]
[1732723994529,1.03956391,239.91,239.87,20.04316999]
[1732723994735,2.0842,239.9,239.87,20.04316999]
[1732723994909,3.12386334,239.9,239.87,20.04316999]
[1732723995108,1.03960869,239.89,239.85,20.04316999]
[1732723995340,1.03960869,239.89,239.83,20.04316999]
[1732723995711,1.03960869,239.89,239.85,20.04316999]
[1732723995931,2.0842,239.9,239.85,20.04316999]
[1732723996228,2.0842,239.9,239.86,12.51557303]
[1732723997824,1.03975925,239.91,239.86,12.51557303]
[1732723998139,2.5826902,239.96,239.89,12.51557303]
[1732723998316,2.5826902,239.96,239.93,12.51557303]
[1732723999926,0.4990902,239.96,239.93,12.51557303]
[1732724000542,0.4990902,239.96,239.95,20.01116324]
[1732724000721,0.4990902,239.96,239.95,43.78804724]
[1732724001320,0.4990902,239.96,239.95,50.01984724]
[1732724002524,0.4990902,239.96,239.95,59.18734724]
[1732724002927,0.4990902,239.96,239.95,69.68274724]
[1732724003647,0.4990902,239.96,239.95,20.01116324]
[1732724005412,0.4990902,239.96,239.95,43.78804724]
[1732724007813,0.4990902,239.96,239.95,20.01116324]
[1732724011350,2.5826902,239.96,239.93,20.01116324]
[1732724011547,2.5826902,239.96,239.91,20.01116324]
[1732724011855,2.5826902,239.96,239.93,20.01116324]
[1732724012358,2.5826902,239.96,239.88,4.1685]
[1732724012359,0.4990902,239.96,239.95,20.01116324]
[1732724013141,22.6090902,239.96,239.95,20.01116324]
[1732724013351,0.4990902,239.96,239.95,20.01116324]
[1732724015466,0.4990902,239.96,239.88,20.0]
[1732724015643,0.4990902,239.96,239.92,20.01116324]
[1732724015962,2.5827902,239.96,239.9,20.01116324]
[1732724016159,2.5827902,239.96,239.92,20.01116324]
[1732724016339,22.11,239.95,239.9,20.01116324]
[1732724016544,22.11,239.95,239.92,20.01116324]
[1732724016758,22.11,239.95,239.94,20.01116324]
[1732724018559,22.11,239.95,239.94,24.17886324]
[1732724020152,22.11,239.95,239.94,47.95574724]
[1732724020346,22.11,239.95,239.94,40.4443945]
[1732724021347,22.11,239.95,239.94,12.4998105]
[1732724023770,22.11,239.95,239.92,12.4998105]
[1732724023944,24.1937,239.95,239.92,12.4998105]
[1732724024143,24.1937,239.95,239.94,12.4998105]
[1732724024344,22.11,239.95,239.94,12.4998105]
[1732724025345,24.1937,239.95,239.94,12.4998105]
[1732724025662,22.11,239.95,239.94,12.4998105]
[1732724026159,22.11,239.95,239.92,12.4998105]
[1732724026369,22.11,239.95,239.94,12.4998105]
[1732724028548,22.11,239.95,239.94,16.6675105]
[1732724028960,22.11,239.95,239.94,12.4998105]
[1732724029254,22.11,239.95,239.94,16.6675105]
[1732724029761,22.11,239.95,239.94,40.4443945]
[1732724029961,22.11,239.95,239.94,12.4998105]
[1732724030265,22.11,239.95,239.94,40.4443945]
[1732724033163,22.11,239.95,239.94,12.4998105]
[1732724033663,0.4990902,239.96,239.94,12.4998105]
[1732724033869,0.4990902,239.96,239.94,16.6674105]
[1732724034054,0.4990902,239.96,239.94,12.4998105]
[1732724034754,0.4990902,239.96,239.94,16.6674105]
[1732724036067,0.4990902,239.96,239.94,12.4998105]
[1732724037364,2.5826902,239.96,239.9,12.4998105]
[1732724037550,1.0393922,239.95,239.89,12.4998105]
[1732724037871,1.0393922,239.95,239.91,12.4998105]
[1732724038244,1.0393922,239.95,239.87,12.4998105]
[1732724038454,13.5392027,239.95,239.87,12.4998105]
[1732724038647,2.0838,239.94,239.87,12.4998105]
[1732724038851,1.0395361,239.93,239.87,12.4998105]
[1732724039067,1.0395361,239.93,239.89,12.4998105]
[1732724040467,3.1234361,239.93,239.87,12.4998105]
[1732724041762,1.0395361,239.93,239.9,12.4998105]
[1732724042149,3.1234361,239.93,239.88,12.4998105]
[1732724043672,1.0395361,239.93,239.9,12.4998105]
[1732724046353,16.6287,239.94,239.92,12.4998105]
[1732724047275,0.4990902,239.96,239.92,12.4998105]
[1732724047467,0.4990902,239.96,239.94,12.4998105]
[1732724047666,3.62205054,239.96,239.92,12.4998105]
[1732724047973,3.62205054,239.96,239.9,12.4998105]
[1732724048195,22.11,239.93,239.92,12.4998105]
[1732724052664,22.11,239.93,239.92,16.6678105]
[1732724053486,22.11,239.93,239.92,40.4446945]
[1732724054855,0.4990902,239.96,239.92,40.4446945]
[1732724055180,0.4990902,239.96,239.95,12.4998105]
[1732724055481,22.6090902,239.96,239.95,36.2766945]
[1732724056261,22.6090902,239.96,239.93,23.776884]
[1732724056558,22.6090902,239.96,239.95,40.4441945]
[1732724057689,0.4990902,239.96,239.93,20.0]
[1732724057990,0.4990902,239.96,239.95,12.4998105]
[1732724063466,0.4990902,239.96,239.95,16.6673105]
[1732724064477,0.4990902,239.96,239.95,12.16741511]
[1732724064869,0.4990902,239.96,239.95,35.94429911]
[1732724065184,0.4990902,239.96,239.95,35.44429911]
[1732724066974,0.4990902,239.96,239.95,11.66741511]
[1732724067773,0.4990902,239.96,239.95,3.6675]
[1732724068470,0.4990902,239.96,239.95,11.66741511]
[1732724072399,0.4990902,239.96,239.95,35.44429911]
[1732724073296,9.02e-05,239.96,239.95,35.44429911]
[1732724075197,9.02e-05,239.96,239.95,11.66741511]
[1732724076775,22.1100902,239.96,239.95,11.66741511]
[1732724077283,9.02e-05,239.96,239.95,11.66741511]
[1732724077477,9.02e-05,239.96,239.95,3.6675]
[1732724077684,9.02e-05,239.96,239.95,11.66741511]
[1732724079476,9.02e-05,239.96,239.91,4.1682]
[1732724079691,9.02e-05,239.96,239.95,7.99991511]
[1732724080389,22.1100902,239.96,239.95,7.99991511]
[1732724081570,22.1100902,239.96,239.86,4.169]
[1732724081774,1.03938183,239.95,239.89,7.99991511]
[1732724083575,3.12308183,239.95,239.89,7.99991511]
[1732724083774,3.12308183,239.95,239.87,7.99991511]
[1732724084001,1.03938183,239.95,239.89,7.99991511]
[1732724084880,3.12308183,239.95,239.87,7.99991511]
[1732724085084,1.03938183,239.95,239.87,7.99991511]
[1732724085396,1.03938183,239.95,239.89,7.99991511]
[1732724085899,1.03938183,239.95,239.93,7.99991511]
[1732724086100,22.1100902,239.96,239.93,7.99991511]
[1732724088088,1.03937914,239.95,239.91,7.99991511]
[1732724088394,22.1100902,239.96,239.91,7.99991511]
[1732724088582,22.1100902,239.96,239.93,7.99991511]
[1732724090676,22.1100902,239.96,239.93,12.16771511]
[1732724091200,22.1100902,239.96,239.93,7.99991511]
[1732724092598,22.1100902,239.96,239.93,12.16761511]
[1732724095083,22.1100902,239.96,239.95,7.99991511]
[1732724095287,22.1100902,239.96,239.95,31.77679911]
[1732724096084,9.02e-05,239.96,239.95,31.77679911]
[1732724096602,9.02e-05,239.96,239.94,20.0]
[1732724096799,9.02e-05,239.96,239.95,12.16741511]
[1732724097383,9.02e-05,239.96,239.95,4.1675]
[1732724097585,9.02e-05,239.96,239.94,7.99991511]
[1732724097982,9.02e-05,239.96,239.93,7.99991511]
[1732724098401,9.02e-05,239.96,239.95,7.99991511]
[1732724099185,9.02e-05,239.96,239.93,7.99991511]
[1732724099413,9.02e-05,239.96,239.87,4.1689]
[1732724099590,9.02e-05,239.96,239.89,20.0]
[1732724099786,9.02e-05,239.96,239.9,7.99991511]
[1732724100201,7.99991511,239.95,239.86,7.99991511]
[1732724100510,7.99991511,239.93,239.86,7.99991511]
[1732724100695,10.08401511,239.91,239.78,10.4259]
[1732724100894,7.99991511,239.89,239.77,4.1706]
[1732724101208,1.03976943,239.88,239.81,7.99991511]
[1732724101405,1.03976943,239.88,239.77,4.1706]
[1732724101406,23.43831511,239.87,239.79,7.99991511]
[1732724101714,1.03990178,239.86,239.79,7.99991511]
[1732724101920,1.03990178,239.86,239.83,7.99991511]
[1732724102207,15.5977,239.93,239.85,7.99991511]
[1732724102513,15.5977,239.93,239.9,7.99991511]
[1732724102696,1.03945599,239.92,239.8,20.0]
[1732724103011,7.99991511,239.89,239.82,7.99991511]
[1732724103209,1.03983137,239.88,239.83,7.99991511]
[1732724103416,1.03971672,239.9,239.84,7.99991511]